lending/lending_fUSD_20241124
["ID","MTS","AMOUNT","RATE_DAILY","PERIOD"]
[343217628,1732475440198,-1052.41184991,0.0004553,30]
[343217629,1732475440210,-849.690518,0.0004553,30]
[343217630,1732475440223,-682.12,0.0004553,30]
[343217635,1732475443997,-2712.19449688,0.0004553,30]
[343217636,1732475444058,-14068.60187606,0.0004553,30]
[343217637,1732475444069,-1054.2,0.0004553,30]
[343217638,1732475444122,-2261.83974495,0.0004553,30]
[343217639,1732475444134,-3673.09829533,0.0004553,30]
[343217640,1732475444144,-768.56110326,0.0004593,15]
[343217641,1732475444154,-6493.98,0.0004599,10]
[343217642,1732475444164,-5411.65,0.0004599,10]
[343217643,1732475444175,-4509.71,0.0004599,10]
[343217644,1732475444184,-16914.22735124,0.00046,30]
[343217650,1732475444549,200.0,0.00035,10]
[343217659,1732475445859,-486.5356481,0.00046,30]
[343217660,1732475445870,-866.264,0.00046,30]
[343217661,1732475445882,-504.765535,0.00046,30]
[343217662,1732475446031,-9972.24154686,0.00046,30]
[343217663,1732475446202,-1011.83921139,0.00046,30]
[343217668,1732475524754,200.0,0.0004201,2]
[343217669,1732475761013,1000.0,0.0004201,2]
[343217672,1732476005976,2842.87669526,0.00038,120]
[343217673,1732476014298,2842.87669526,0.0004,120]
[343217674,1732476022582,684.56558907,0.00038,120]
[343217675,1732476030889,684.56558907,0.0004,120]
[343217676,1732476146777,1000.0,0.0004,120]
[343217681,1732476197803,500.0,0.0004,120]
[343217682,1732476204544,2000.0,0.0004,120]
[343217683,1732476215953,500.0,0.0004,120]
[343217684,1732476222311,200.0,0.0004,120]
[343217685,1732476272364,604.63309651,0.0004191,2]
[343217686,1732476421125,3922.0434559,0.00035,10]
[343217687,1732476421150,11093.53515051,0.00035,10]
[343217689,1732476445460,1000.0,0.00042,2]
[343217690,1732476451800,4757.78,0.00033,120]
[343217691,1732476498784,500.0,0.00041,2]
[343217692,1732476509609,10000.0,0.00042,120]
[343217698,1732476522566,15233.71082086,0.00035,10]
[343217704,1732476523539,38515.60163937,0.00042,30]
[343217721,1732476594154,10000.0,0.00042,120]
[343217722,1732476601245,362.0,0.00042,30]
[343217725,1732476631974,-1000.0,0.0004201,2]
[343217726,1732476631984,-13400.0,0.000429,60]
[343217727,1732476631995,-1360.0,0.000429,60]
[343217730,1732476632014,-289.39427278,0.000429,60]
[343217731,1732476632145,-813.58067799,0.000429,60]
[343217732,1732476632377,-1000.3932,0.000429,60]
[343217733,1732476632390,-1000.395,0.000429,60]
[343217753,1732476640239,-4535.62014569,0.000429,60]
[343217754,1732476640249,-5685.75339053,0.00043,120]
[343217755,1732476640259,-1369.13117814,0.00043,120]
[343217756,1732476640267,-374.09,0.00043169,2]
[343217757,1732476640278,-1680.20803,0.0004382,20]
[343217758,1732476640291,-1680.20803,0.0004383,20]
[343217759,1732476640302,-1680.20802,0.00044246,22]
[343217760,1732476640316,-1680.20803,0.00044246,22]
[343217761,1732476640326,-1680.20803,0.00044246,22]
[343217762,1732476640335,-1680.20803,0.00044246,22]
[343217763,1732476640345,-1998.63,0.00044833,2]
[343217764,1732476640356,-1000.0,0.00044857,2]
[343217765,1732476640366,-10296.42,0.00044899,2]
[343217766,1732476640382,-155.06,0.00045018,120]
[343217767,1732476640393,-579.28,0.00045076,2]
[343217768,1732476640403,-1000.0,0.00045113,120]
[343217769,1732476640412,-198.92,0.00045178,120]
[343217770,1732476640422,-374.09,0.00045433,2]
[343217771,1732476640431,-336.4,0.000456,120]
[343217772,1732476640441,-198.067,0.000456,74]
[343217773,1732476640453,-250.0,0.00045709,120]
[343217774,1732476640462,-388.61340964,0.00045899,2]
[343217775,1732476640472,-294.78713945,0.00045899,120]
[343217776,1732476640482,-691.70499288,0.000459,15]
[343217777,1732476640492,-500.0,0.00045973,2]
[343217778,1732476640502,-3758.09,0.00045989,10]
[343217779,1732476640511,-3131.74,0.00045989,10]
[343217780,1732476640520,-2609.79,0.0004599,10]
[343217781,1732476640530,-1696143.98007562,0.00046,24]
[343217782,1732476640542,-3368.33274425,0.00046,24]
[343217783,1732476640554,-951.73595023,0.00046,24]
[343217790,1732476643113,-3601.01240014,0.00046,24]
[343217791,1732476643861,-2750.61924594,0.00046,24]
[343217792,1732476643873,-4015.97356512,0.00046,24]
[343217793,1732476643997,-561.02957603,0.00046,24]
[343217804,1732476652287,-737316.16422039,0.00046,24]
[343217805,1732476652298,-9370.46808471,0.00046,22]
[343217806,1732476652308,-71008.12670741,0.00046,30]
[343217807,1732476652321,-7107.19173816,0.00046,120]
[343217808,1732476652331,-1711.41397267,0.00046,120]
[343217809,1732476652340,-47937.3068,0.00046,2]
[343217810,1732476652349,-728.88135017,0.00046027,30]
[343217811,1732476652360,-303.91970874,0.00046027,30]
[343217812,1732476652370,-150.0,0.00046027,30]
[343217813,1732476652379,-156.90159265,0.00046027,30]
[343217814,1732476652391,-227.25754526,0.00046027,30]
[343217815,1732476652401,-150.0,0.00046027,30]
[343217816,1732476652411,-280.08839945,0.00046027,30]
[343217817,1732476652422,-150.0,0.00046027,30]
[343217818,1732476652433,-150.0,0.00046027,30]
[343217819,1732476652443,-150.0,0.00046027,30]
[343217820,1732476652454,-150.0,0.00046027,30]
[343217821,1732476652464,-154.72619204,0.00046027,30]
[343217822,1732476652473,-167.68183686,0.00046027,30]
[343217823,1732476652482,-150.0,0.00046027,30]
[343217824,1732476652492,-150.0,0.00046027,30]
[343217825,1732476652503,-159.74317996,0.00046055,30]
[343217826,1732476652513,-4079.02078476,0.00046055,30]
[343217827,1732476652523,-728.88135017,0.00046068,30]
[343217828,1732476652532,-303.91970874,0.00046068,30]
[343217829,1732476652542,-227.25754526,0.00046068,30]
[343217830,1732476652553,-150.0,0.00046085,30]
[343217831,1732476652563,-150.0,0.00046105,30]
[343217832,1732476652573,-728.88135017,0.00046108,30]
[343217833,1732476652582,-303.91970874,0.00046108,30]
[343217834,1732476652592,-227.25754526,0.00046108,30]
[343217835,1732476652602,-150.0,0.00046129,30]
[343217836,1732476652610,-225.0,0.0004613,30]
[343217837,1732476652620,-150.0,0.00046143,30]
[343217838,1732476652629,-164.54,0.00046143,2]
[343217839,1732476652639,-728.88135017,0.00046148,30]
[343217840,1732476652649,-303.91970874,0.00046148,30]
[343217841,1732476652659,-227.25754526,0.00046148,30]
[343217842,1732476652669,-150.0,0.00046183,30]
[343217843,1732476652678,-728.88135017,0.00046188,30]
[343217844,1732476652689,-303.91970874,0.00046188,30]
[343217845,1732476652699,-227.25754526,0.00046188,30]
[343217846,1732476652711,-150.0,0.000462,30]
[343217847,1732476652720,-728.88135017,0.00046228,30]
[343217848,1732476652730,-303.91970874,0.00046228,30]
[343217849,1732476652740,-227.25754526,0.00046228,30]
[343217850,1732476652749,-150.0,0.00046231,30]
[343217851,1732476652759,-150.0,0.00046258,30]
[343217852,1732476652768,-150.0,0.00046261,30]
[343217853,1732476652778,-728.88135017,0.00046268,30]
[343217854,1732476652788,-303.91970874,0.00046268,30]
[343217855,1732476652798,-227.25754526,0.00046268,30]
[343217856,1732476652807,-728.88135017,0.00046308,30]
[343217857,1732476652817,-303.91970874,0.00046308,30]
[343217858,1732476652827,-227.25754526,0.00046308,30]
[343217859,1732476652836,-150.0,0.00046315,30]
[343217860,1732476652846,-150.0,0.00046333,30]
[343217861,1732476652857,-150.0,0.00046339,30]
[343217862,1732476652866,-691.70499288,0.00046344,15]
[343217863,1732476652876,-728.88135017,0.00046348,30]
[343217864,1732476653032,-303.91970874,0.00046348,30]
[343217865,1732476653043,-227.25754526,0.00046348,30]
[343217866,1732476653054,-150.0,0.00046373,30]
[343217867,1732476653063,-728.88135017,0.00046389,30]
[343217868,1732476653072,-303.91970874,0.00046389,30]
[343217869,1732476653081,-227.25754526,0.00046389,30]
[343217870,1732476653091,-150.0,0.00046417,30]
[343217871,1732476653100,-728.88135017,0.00046429,30]
[343217872,1732476653111,-303.91970874,0.00046429,30]
[343217873,1732476653122,-227.25754526,0.00046429,30]
[343217874,1732476653133,-150.0,0.0004643,30]
[343217875,1732476653144,-150.0,0.00046435,30]
[343217876,1732476653154,-728.88135017,0.00046469,30]
[343217877,1732476653163,-303.91970874,0.00046469,30]
[343217878,1732476653172,-227.25754526,0.00046469,30]
[343217879,1732476653183,-150.0,0.00046469,30]
[343217880,1732476653192,-180.32575184,0.00046475,2]
[343217881,1732476653204,-4615.51293616,0.00046475,2]
[343217882,1732476653214,-29637.26393562,0.00046475,2]
[343217883,1732476653224,-200.98297684,0.00046475,9]
[343217884,1732476653233,-1297.06029318,0.00046475,2]
[343217885,1732476653243,-150.0,0.00046488,30]
[343217886,1732476653252,-150.0,0.00046495,30]
[343217887,1732476653262,-728.88135017,0.00046509,30]
[343217888,1732476653271,-303.91970874,0.00046509,30]
[343217889,1732476653280,-227.25754526,0.00046509,30]
[343217890,1732476653290,-1000.0,0.00046521,2]
[343217891,1732476653300,-150.0,0.00046537,30]
[343217892,1732476653311,-423.32987576,0.00046545,120]
[343217893,1732476653323,-150.0,0.00046546,30]
[343217894,1732476653332,-728.88135017,0.00046549,30]
[343217895,1732476653342,-303.91970874,0.00046549,30]
[343217896,1732476653351,-227.25754526,0.00046549,30]
[343217897,1732476653360,-159.18855577,0.00046573,2]
[343217898,1732476653370,-506.79745022,0.00046573,10]
[343217899,1732476653379,-500.0,0.00046573,10]
[343217900,1732476653390,-150.0,0.00046573,30]
[343217901,1732476653400,-50231.55,0.00046574,2]
[343217902,1732476653411,-151.0,0.00046575,14]
[343217903,1732476653420,-5232.52,0.00046575,2]
[343217904,1732476653431,-5232.52,0.00046575,2]
[343217905,1732476653440,-5232.52,0.00046575,2]
[343217906,1732476653449,-5232.52,0.00046575,2]
[343217907,1732476653461,-5232.52,0.00046575,2]
[343217908,1732476653471,-5232.52,0.00046575,2]
[343217909,1732476653480,-5232.52,0.00046575,2]
[343217910,1732476653489,-5232.52,0.00046575,2]
[343217911,1732476653499,-5232.52,0.00046575,2]
[343217912,1732476653508,-5232.52,0.00046575,2]
[343217913,1732476653518,-7899.72,0.00046575,2]
[343217914,1732476653527,-7899.72,0.00046575,2]
[343217915,1732476653537,-7899.72,0.00046575,2]
[343217916,1732476653547,-7899.72,0.00046575,2]
[343217917,1732476653556,-7899.72,0.00046575,2]
[343217918,1732476653565,-7899.72,0.00046575,2]
[343217919,1732476653575,-7899.72,0.00046575,2]
[343217920,1732476653583,-7899.72,0.00046575,2]
[343217921,1732476653592,-7899.72,0.00046575,2]
[343217922,1732476653601,-7899.72,0.00046575,2]
[343217923,1732476653611,-8909.41,0.00046575,2]
[343217924,1732476653620,-8909.41,0.00046575,2]
[343217925,1732476653629,-8909.41,0.00046575,2]
[343217926,1732476653639,-8909.41,0.00046575,2]
[343217927,1732476653648,-8909.41,0.00046575,2]
[343217928,1732476653658,-8909.41,0.00046575,2]
[343217929,1732476653667,-8909.41,0.00046575,2]
[343217930,1732476653676,-8909.41,0.00046575,2]
[343217931,1732476653686,-8909.41,0.00046575,2]
[343217932,1732476653695,-8909.41,0.00046575,2]
[343217933,1732476653705,-5423.3,0.00046575,2]
[343217934,1732476653714,-151.0,0.00046575,14]
[343217935,1732476653723,-5423.3,0.00046575,2]
[343217936,1732476653733,-5423.3,0.00046575,2]
[343217937,1732476653743,-5423.3,0.00046575,2]
[343217938,1732476653753,-151.0,0.00046575,14]
[343217939,1732476653762,-5423.3,0.00046575,2]
[343217940,1732476653772,-151.0,0.00046575,14]
[343217941,1732476653782,-5423.3,0.00046575,2]
[343217942,1732476653792,-5423.3,0.00046575,2]
[343217943,1732476653802,-151.0,0.00046575,14]
[343217944,1732476653811,-5423.3,0.00046575,2]
[343217945,1732476653821,-151.0,0.00046575,14]
[343217946,1732476653831,-5423.3,0.00046575,2]
[343217947,1732476653841,-151.0,0.00046575,14]
[343217948,1732476653850,-5423.3,0.00046575,2]
[343217949,1732476653860,-151.0,0.00046575,14]
[343217950,1732476653869,-500.0,0.00046575,2]
[343217951,1732476653878,-500.0,0.00046575,2]
[343217952,1732476653888,-500.0,0.00046575,2]
[343217953,1732476653898,-500.0,0.00046575,2]
[343217954,1732476653907,-500.0,0.00046575,2]
[343217955,1732476653917,-309.7,0.00046575,2]
[343217956,1732476653926,-5354.23,0.00046575,2]
[343217957,1732476653936,-5354.23,0.00046575,2]
[343217958,1732476653946,-5354.23,0.00046575,2]
[343217959,1732476653957,-5354.23,0.00046575,2]
[343217960,1732476653967,-5354.23,0.00046575,2]
[343217961,1732476653976,-5354.23,0.00046575,2]
[343217962,1732476653986,-5354.23,0.00046575,2]
[343217963,1732476653996,-5354.23,0.00046575,2]
[343217964,1732476654007,-5354.23,0.00046575,2]
[343217965,1732476654016,-5354.23,0.00046575,2]
[343217966,1732476654026,-1000.0,0.00046575,120]
[343217967,1732476654037,-500.0,0.00046575,2]
[343217968,1732476654048,-500.0,0.00046575,2]
[343217969,1732476654058,-500.0,0.00046575,2]
[343217970,1732476654068,-500.0,0.00046575,2]
[343217971,1732476654078,-500.0,0.00046575,2]
[343217972,1732476654088,-575.68762933,0.00046575,2]
[343217973,1732476654097,-500.0,0.00046575,2]
[343217974,1732476654107,-500.0,0.00046575,2]
[343217975,1732476654117,-500.0,0.00046575,2]
[343217976,1732476654127,-500.0,0.00046575,2]
[343217977,1732476654137,-500.0,0.00046575,2]
[343217978,1732476654146,-500.0,0.00046575,2]
[343217979,1732476654156,-500.0,0.00046575,2]
[343217980,1732476654166,-500.0,0.00046575,2]
[343217981,1732476654175,-500.0,0.00046575,2]
[343217982,1732476654185,-500.0,0.00046575,2]
[343217983,1732476654195,-9000.46,0.00046575,2]
[343217984,1732476654207,-9000.46,0.00046575,2]
[343217985,1732476654216,-9000.46,0.00046575,2]
[343217986,1732476654226,-9000.46,0.00046575,2]
[343217987,1732476654235,-9000.46,0.00046575,2]
[343217988,1732476654245,-9000.46,0.00046575,2]
[343217989,1732476654254,-9000.46,0.00046575,2]
[343217990,1732476654264,-9000.46,0.00046575,2]
[343217991,1732476654273,-9000.46,0.00046575,2]
[343217992,1732476654282,-9000.46,0.00046575,2]
[343217993,1732476654291,-9000.46,0.00046575,2]
[343217994,1732476654301,-5861.72,0.00046575,2]
[343217995,1732476654311,-5861.72,0.00046575,2]
[343217996,1732476654323,-9000.46,0.00046575,2]
[343217997,1732476654332,-5861.72,0.00046575,2]
[343217998,1732476654341,-9000.46,0.00046575,2]
[343217999,1732476654351,-5861.72,0.00046575,2]
[343218000,1732476654360,-5861.72,0.00046575,2]
[343218001,1732476654370,-5861.72,0.00046575,2]
[343218002,1732476654379,-5861.72,0.00046575,2]
[343218003,1732476654392,-5861.72,0.00046575,2]
[343218004,1732476654403,-5861.72,0.00046575,2]
[343218005,1732476654413,-5861.72,0.00046575,2]
[343218006,1732476654423,-151.0,0.00046575,14]
[343218007,1732476654432,-500.0,0.00046575,2]
[343218008,1732476654443,-6653.64,0.00046575,2]
[343218009,1732476654456,-6653.64,0.00046575,2]
[343218010,1732476654465,-6653.64,0.00046575,2]
[343218011,1732476654475,-6653.64,0.00046575,2]
[343218012,1732476654485,-6653.64,0.00046575,2]
[343218013,1732476654494,-6653.64,0.00046575,2]
[343218014,1732476654503,-6653.64,0.00046575,2]
[343218015,1732476654513,-6653.64,0.00046575,2]
[343218016,1732476654522,-6653.64,0.00046575,2]
[343218017,1732476654532,-6653.64,0.00046575,2]
[343218018,1732476654541,-6653.64,0.00046575,2]
[343218019,1732476654550,-6653.64,0.00046575,2]
[343218020,1732476654560,-6653.64,0.00046575,2]
[343218021,1732476654570,-500.0,0.00046575,2]
[343218022,1732476654579,-17788.29,0.00046575,2]
[343218023,1732476654589,-500.0,0.00046575,2]
[343218024,1732476654598,-17788.29,0.00046575,2]
[343218025,1732476654608,-500.0,0.00046575,2]
[343218026,1732476654617,-500.0,0.00046575,2]
[343218027,1732476654627,-17788.29,0.00046575,2]
[343218028,1732476654636,-17788.29,0.00046575,2]
[343218029,1732476654646,-500.0,0.00046575,2]
[343218030,1732476654655,-17788.29,0.00046575,2]
[343218031,1732476654665,-500.0,0.00046575,2]
[343218032,1732476654675,-17788.29,0.00046575,2]
[343218033,1732476654684,-500.0,0.00046575,2]
[343218034,1732476654694,-17788.29,0.00046575,2]
[343218035,1732476654705,-17788.29,0.00046575,2]
[343218036,1732476654715,-17788.29,0.00046575,2]
[343218037,1732476654725,-500.0,0.00046575,2]
[343218038,1732476654734,-17788.29,0.00046575,2]
[343218039,1732476654745,-500.0,0.00046575,2]
[343218040,1732476654754,-500.0,0.00046575,2]
[343218041,1732476654764,-17788.29,0.00046575,2]
[343218042,1732476654783,-17788.29,0.00046575,2]
[343218043,1732476654794,-17788.29,0.00046575,2]
[343218044,1732476654803,-500.0,0.00046575,2]
[343218045,1732476654812,-500.0,0.00046575,2]
[343218046,1732476654822,-500.0,0.00046575,2]
[343218047,1732476654831,-5063.29,0.00046575,2]
[343218048,1732476654841,-500.0,0.00046575,2]
[343218049,1732476654851,-5063.29,0.00046575,2]
[343218050,1732476654860,-397.28,0.00046575,2]
[343218051,1732476654870,-1150.79632591,0.00046575,2]
[343218052,1732476655055,-3912.49367409,0.00046575,2]
[343218053,1732476655066,-386.01269251,0.00046575,2]
[343218054,1732476887554,20000.0,0.00042,120]
[343218055,1732476927962,-12852.85520936,0.00051076,120]
[343218056,1732476927991,-3352.52951426,0.00051076,120]
[343218057,1732476928019,-3496.40959132,0.00051076,120]
[343218058,1732476928047,-4733.67769637,0.00051076,120]
[343218059,1732476928076,-11720.82112116,0.00051076,120]
[343218060,1732476928103,-4759.62939382,0.00051076,120]
[343218061,1732476928129,-3441.5764012,0.00051076,120]
[343218062,1732476928156,-5016.37749617,0.00051076,120]
[343218063,1732476928184,-4201.20383064,0.00051076,120]
[343218064,1732476928215,-3084.46148803,0.00051076,120]
[343218065,1732476928241,-49202.65726324,0.00051076,30]
[343218066,1732476928269,-189.09276506,0.00051076,30]
[343218067,1732476928297,-1399.36252459,0.00051076,30]
[343218068,1732476928324,-150.0,0.00051076,30]
[343218069,1732476928350,-232.0,0.00051076,120]
[343218070,1732476928376,-1000.0,0.00051076,30]
[343218071,1732476928406,-5100.0,0.00051076,35]
[343218072,1732476928432,-4613.26,0.00051076,90]
[343218073,1732476928462,-2379.17507208,0.00051076,30]
[343218074,1732476928489,-208.9984313,0.00051076,60]
[343218075,1732476928516,-1500.0,0.00051076,120]
[343218076,1732476928544,-3432.52227318,0.00051076,120]
[343218077,1732476928572,-10868.75330014,0.00051076,120]
[343218078,1732476928601,-7361.27786564,0.00051076,120]
[343218079,1732476928628,-285.16874685,0.00051076,90]
[343218080,1732476928654,-253.49622681,0.00051076,30]
[343218081,1732476928681,-236.45231397,0.00051076,120]
[343218082,1732476928710,-181.2286896,0.00051076,30]
[343218083,1732476928738,-1114.75986695,0.00051076,60]
[343218084,1732476928767,-5543.0,0.00051076,120]
[343218085,1732476928795,-14800.0,0.00051076,120]
[343218086,1732476928823,-400.5313337,0.00051076,120]
[343218087,1732476928852,-8134.66,0.00051076,90]
[343218088,1732476928880,-2965.42,0.00051076,90]
[343218089,1732476928908,-10000.0,0.00051076,120]
[343218090,1732476928936,-6851.92,0.00051076,90]
[343218091,1732476928965,-1000.0,0.00051076,120]
[343218092,1732476928991,-1000.0,0.00051076,120]
[343218093,1732476929192,-1000.0,0.00051076,120]
[343218094,1732476929222,-10000.0,0.00051076,120]
[343218095,1732476929250,-12369.0,0.00051076,90]
[343218096,1732476929276,-14193.75456009,0.00051076,120]
[343218097,1732476929302,-666.33084965,0.00051076,120]
[343218098,1732476929328,-2149.249,0.00051076,90]
[343218099,1732476929355,-2459.0,0.00051076,30]
[343218100,1732476929381,-10000.0,0.00051076,120]
[343218101,1732476929409,-1738.53337423,0.00051076,120]
[343218102,1732476929438,-8475.30131606,0.00051076,120]
[343218103,1732476929467,-4890.3692897,0.00051076,120]
[343218104,1732476929496,-10000.0,0.00051076,120]
[343218105,1732476929523,-2007.0,0.00051076,30]
[343218106,1732476929550,-10000.0,0.00051076,120]
[343218107,1732476929576,-8867.0,0.00051076,120]
[343218108,1732476929602,-248.12406164,0.00051076,120]
[343218109,1732476929628,-10000.0,0.00051076,120]
[343218110,1732476929655,-15229.22946831,0.00051076,30]
[343218111,1732476929682,-9365.0,0.00051076,120]
[343218112,1732476929709,-10000.0,0.00051076,120]
[343218113,1732476929737,-233.38875719,0.00051076,60]
[343218114,1732476929766,-245.78,0.00051076,120]
[343218115,1732476929794,-9767.28613805,0.00051076,60]
[343218116,1732476929822,-29724.81706901,0.00051076,120]
[343218117,1732476929850,-7058.20139297,0.00051076,30]
[343218118,1732476929878,-6028.4810282,0.00051076,30]
[343218119,1732476929905,-7907.26921137,0.00051076,30]
[343218120,1732476929932,-2993.26741634,0.00051076,120]
[343218121,1732476929959,-2751.9364983,0.00051076,120]
[343218122,1732476929987,-6929.86831018,0.00051076,30]
[343218123,1732476930014,-3123.5028866,0.00051076,120]
[343218124,1732476930042,-3195.69654007,0.00051076,60]
[343218125,1732476930070,-3105.3074675,0.00051076,120]
[343218126,1732476930101,-6584.81412806,0.00051076,30]
[343218127,1732476930131,-1543.35563942,0.00051076,120]
[343218128,1732476930161,-3554.0833194,0.00051076,90]
[343218129,1732476930189,-6601.49740866,0.00051076,120]
[343218130,1732476930219,-2000.0,0.00051076,31]
[343218131,1732476930247,-1055.0,0.00051076,30]
[343218132,1732476930276,-1055.0,0.00051076,30]
[343218133,1732476930305,-1055.0,0.00051076,30]
[343218134,1732476930333,-1055.0,0.00051076,30]
[343218135,1732476930361,-1055.0,0.00051076,30]
[343218136,1732476930389,-150.0,0.00051076,120]
[343218137,1732476930421,-150.0,0.00051076,120]
[343218138,1732476930451,-151.057,0.00051076,120]
[343218139,1732476930480,-150.33,0.00051076,120]
[343218140,1732476930507,-150.0,0.00051076,120]
[343218141,1732476930535,-150.0,0.00051076,120]
[343218142,1732476930562,-150.187,0.00051076,120]
[343218143,1732476930591,-150.0,0.00051076,120]
[343218144,1732476930620,-150.0,0.00051076,120]
[343218145,1732476930647,-1769.0,0.00051076,30]
[343218146,1732476930673,-13037.65336716,0.00051076,30]
[343218147,1732476930703,-10000.0,0.00051076,120]
[343218148,1732476930731,-23662.34539175,0.00051076,60]
[343218149,1732476930761,-2842.87669526,0.00051076,120]
[343218150,1732476930788,-16002.05785372,0.00051076,120]
[343218151,1732476930816,-5084.00348445,0.00051076,30]
[343218152,1732476930844,-684.56558907,0.00051076,120]
[343218153,1732476930871,-3534.28758504,0.00051076,30]
[343218154,1732476930898,-12984.79528476,0.00051076,30]
[343218155,1732476930926,-5241.53516319,0.00051076,30]
[343218156,1732476930956,-30796.41562239,0.00051076,120]
[343218157,1732476930984,-15811.09295669,0.00051076,30]
[343218158,1732476931011,-5790.600647,0.00051076,30]
[343218159,1732476931039,-101977.32102434,0.00051076,30]
[343218160,1732476931067,-4705.35074614,0.00051076,120]
[343218161,1732476931095,-4763.19904391,0.00051076,60]
[343218162,1732476931123,-17284.40854776,0.00051076,30]
[343218163,1732476931149,-29554.29385456,0.00051076,30]
[343218164,1732476931178,-15899.50535614,0.00051076,120]
[343218165,1732476931205,-7871.16944964,0.00051076,30]
[343218166,1732476931232,-31776.6792571,0.00051076,30]
[343218167,1732476931259,-32479.90645859,0.00051076,120]
[343218168,1732476931288,-6137.64680213,0.00051076,120]
[343218169,1732476931315,-106436.5129047,0.00051076,30]
[343218170,1732476931342,-5302.8475593,0.00051076,120]
[343218171,1732476931370,-27410.0527385,0.00051076,30]
[343218172,1732476931400,-10463.57907027,0.00051076,120]
[343218173,1732476938748,-5143.22379789,0.00051076,120]
[343218174,1732476938778,-39951.63983958,0.00051076,120]
[343218175,1732476938806,-7727.51135052,0.00051076,120]
[343218176,1732476938848,-15384.81864876,0.00051076,120]
[343218177,1732476938878,-22870.26547161,0.00051076,30]
[343218178,1732476938907,-7739.79372232,0.00051076,120]
[343218179,1732476938937,-9559.48031048,0.00051076,120]
[343218180,1732476938968,-50343.28049849,0.00051076,30]
[343218181,1732476938998,-6414.86056479,0.00051076,120]
[343218182,1732476939025,-50000.0,0.00051076,30]
[343218183,1732476939055,-11366.57192006,0.00051076,120]
[343218184,1732476939084,-13571.68074113,0.00051076,120]
[343218185,1732476939112,-34372.30882001,0.00051076,30]
[343218186,1732476939141,-22296.47910164,0.00051076,120]
[343218187,1732476939169,-7635.95868823,0.00051076,30]
[343218188,1732476939197,-12742.33251972,0.00051076,30]
[343218189,1732476939233,-55057.73243272,0.00051076,30]
[343218190,1732476939261,-77891.67189372,0.00051076,120]
[343218191,1732476939291,-12669.03743738,0.00051076,120]
[343218192,1732476939319,-4813.47823895,0.00051076,30]
[343218193,1732476939346,-9500.0,0.00051076,30]
[343218194,1732476939375,-10108.68698182,0.00051076,120]
[343218195,1732476939406,-7569.56830008,0.00051076,35]
[343218196,1732476939433,-26347.04119427,0.00051076,30]
[343218197,1732476939464,-14966.29682606,0.00051076,120]
[343218198,1732476939496,-3700.80538527,0.00051076,30]
[343218199,1732476939524,-19234.50834092,0.00051076,30]
[343218200,1732476939553,-10066.75801561,0.00051076,120]
[343218201,1732476939582,-8852.33070798,0.00051076,120]
[343218202,1732476939610,-34187.70081831,0.00051076,120]
[343218203,1732476939639,-5320.33962314,0.00051076,30]
[343218204,1732476939670,-16376.59580611,0.00051076,30]
[343218205,1732476939700,-18204.7241671,0.00051076,60]
[343218206,1732476939733,-32533.29965978,0.00051076,30]
[343218207,1732476939762,-5605.57871855,0.00051076,120]
[343218208,1732476939791,-16163.11043476,0.00051076,45]
[343218209,1732476939822,-56914.97226084,0.00051076,30]
[343218210,1732476939851,-65915.60289955,0.00051076,120]
[343218211,1732476939880,-3346.22480236,0.00051076,120]
[343218212,1732476939909,-32539.75107371,0.00051076,120]
[343218213,1732476939937,-18695.33791028,0.00051076,30]
[343218214,1732476939970,-57157.80853195,0.00051076,30]
[343218215,1732476939999,-59140.83154355,0.00051076,30]
[343218216,1732477032180,995.00684334,0.00038,120]
[343218217,1732477040485,995.00684334,0.0004,120]
[343218218,1732477050422,239.59795617,0.00038,120]
[343218219,1732477057256,-40000.0,0.000425,120]
[343218220,1732477057284,-1990.01368668,0.00043,120]